[Event "FRA-ch Teams Top 16-Bas 2022"]
[Site "Chartres"]
[Date "2022.06.16"]
[Round "8.10"]
[White "Fantinel, Thibault"]
[Black "Saatdjian, Thomas"]
[Result "1-0"]
[ECO "B23"]
[WhiteElo "2388"]
[BlackElo "2271"]
[Annotator "TA"]
[PlyCount "75"]
[EventDate "2022.06.16"]
[EventType "team-tourn"]
[EventCountry "FRA"]
[SourceTitle "playchess.com"]
[Source "ChessBase"]
[SourceQuality "1"]
[TimeControl "40/5400+30:1800+30"]

{[%evp 9,75,0,10,0,0,0,0,0,0,0,17,22,42,47,94,88,142,139,150,151,150,152,145,138,195,199,302,299,273,292,364,383,440,436,435,423,415,418,442,408,433,430,431,421,449,427,1000,992,983,987,893,701,637,627,625,626,624,617,594,549,549,533,543,534,613,602,733,733]} 1. e4 {[%emt 0:00:05]} c5 {[%emt 0:00:08]} 2. Nc3 {[%emt 0:00:10]} Nc6 {[%emt 0:00:09]} 3. Bb5 {[%emt 0:00:09]} Nd4 {[%emt 0:00:13]} 4. Bc4 {[%emt 0:00:06]} Nf6 {[%emt 0:02:28]} 5. Nge2 {[%emt 0:01:56]} a6 {[%emt 0:00:43]} 6. a4 {[%emt 0:03:52] Prevents b5. B23: Closed Sicilian: Lines without g3.} e6 {[%emt 0:01:38]} 7. O-O {[%emt 0:00:15]} d5 {[%emt 0:00:26]} 8. exd5 {[%emt 0:00:05] The position is equal.} exd5 {[%emt 0:00:05]} 9. Ba2 {[%emt 0:00:02]} ({Of course not} 9. Nxd4 cxd4 10. Nxd5 Nxd5 $15) 9... Bg4 {[%emt 0:00:43]} 10. h3 {[%emt 0:00:42]} Bh5 {[%emt 0:10:31]} 11. d3 {[%emt 0:00:31]} h6 {[%emt 0:01:32] [#]} (11... Be7 $14) 12. f3 $146 {[%emt 0:03:23][%cal Bf2f3,Bf3f4,Bf4f5][%mdl 32]} ({Predecessor:} 12. Qd2 Nxe2+ 13. Nxe2 Bd6 14. Nf4 Bxf4 15. Re1+ Kf8 16. Qxf4 g5 17. Qg3 Rc8 18. Bd2 {½-½ (27) Mellado Trivino,J (2435)-Teske,H (2550) Seville 2012}) 12... Ne6 {[%emt 0:08:30] [#]} ({Better is} 12... Be7) 13. g4 $1 {[%emt 0:08:21]} Bg6 {[%emt 0:00:05] [#]} 14. f4 $1 {[%emt 0:01:30] And now f5 would win.} Nc7 {[%emt 0:17:11]} 15. f5 {[%emt 0:05:02]} Bh7 {[%emt 0:00:01]} 16. Nf4 $36 {[%emt 0:01:56][%mdl 2048] White has strong initiative.} d4 {[%emt 0:18:30]} (16... Qd6 $16 {keeps fighting.}) 17. Ne4 $18 {[%emt 0:01:26]} Be7 {[%emt 0:00:22]} (17... Nxe4 {was called for.} 18. dxe4 Qe7) 18. Nxf6+ {[%emt 0:06:31]} Bxf6 {[%emt 0:00:01]} 19. Re1+ {[%emt 0:00:35]} Kf8 {[%emt 0:00:07]} 20. Qf3 {[%emt 0:01:18]} Rb8 {[%emt 0:08:53]} 21. Bd2 {[%emt 0:04:57]} Qd6 {[%emt 0:04:19]} 22. Rab1 {[%emt 0:06:20][%cal Ba1b1,Bb1f1,Bf1e1][%mdl 32]} Qc6 {[%emt 0:07:30]} 23. Qxc6 {[%emt 0:08:02]} bxc6 {[%emt 0:00:05]} 24. b4 {[%emt 0:04:47]} c4 {[%emt 0:03:41]} 25. Bxc4 {[%emt 0:00:09] White is clearly winning.} Bg5 {[%emt 0:00:06]} 26. Re4 {[%emt 0:03:44]} Rd8 {[%emt 0:00:51]} 27. Rf1 {[%emt 0:03:10]} Rd6 {[%emt 0:07:25]} (27... Be7 $142 28. Ng6+ Bxg6 29. fxg6 f6) 28. b5 {[%emt 0:03:15]} c5 {[%emt 0:00:09] Against Bb4} 29. bxa6 {[%emt 0:02:02]} Nxa6 {[%emt 0:00:17]} 30. Rfe1 {[%emt 0:00:40][%csl Ge1][%cal Re4e8]} g6 {[%emt 0:01:01]} 31. fxg6 {[%emt 0:10:20]} Bxg6 {[%emt 0:00:34]} 32. Nxg6+ {[%emt 0:01:03]} Rxg6 {[%emt 0:00:06]} 33. Bxg5 {[%emt 0:00:10]} hxg5 {[%emt 0:00:07]} 34. Re8+ {[%emt 0:00:04]} Kg7 {[%emt 0:00:06]} 35. Rxh8 {[%emt 0:00:18]} Kxh8 {[%emt 0:00:01]} 36. Bxf7 {[%emt 0:00:06]} Rb6 {[%emt 0:00:20]} 37. a5 {[%emt 0:03:17]} Rb5 {[%emt 0:01:10]} 38. Bc4 {[%emt 0:00:39] White took control after the opening.  Weighted Error Value: White=0.02 (flawless) /Black=0.27 (precise)} 1-0

[Event "FRA-ch Teams Top 16-Bas 2022"]
[Site "Chartres"]
[Date "2022.06.16"]
[Round "8.11"]
[White "Eden, James"]
[Black "Ternault, Mathieu"]
[Result "0-1"]
[ECO "B03"]
[WhiteElo "2273"]
[BlackElo "2367"]
[Annotator "TA"]
[PlyCount "56"]
[EventDate "2022.06.16"]
[EventType "team-tourn"]
[EventCountry "FRA"]
[SourceTitle "playchess.com"]
[Source "ChessBase"]
[SourceQuality "1"]
[TimeControl "40/5400+30:1800+30"]

{[%evp 16,56,22,18,11,0,0,0,0,-82,-68,-162,-162,-168,-34,-20,-40,-147,-80,-113,-58,-99,-73,-78,0,-64,-54,-44,-45,-326,-344,-442,-376,-376,-369,-350,-354,-529,-519,-517,-503,-976,-580]} 1. e4 {[%emt 0:01:54][%cal Be2e4,Be4e5][%mdl 32]} Nf6 {[%emt 0:00:11]} 2. e5 {[%emt 0:02:04]} Nd5 {[%emt 0:00:54]} 3. d4 {[%emt 0:00:14]} d6 {[%emt 0:00:05]} 4. c4 {[%emt 0:01:03]} Nb6 {[%emt 0:00:04]} 5. exd6 {[%emt 0:00:26]} cxd6 {[%emt 0:00:06]} 6. Nc3 {[%emt 0:02:00]} g6 {[%emt 0:00:12]} 7. Bd3 {[%emt 0:05:39]} Bg7 {[%emt 0:06:12]} 8. Nge2 {[%emt 0:00:19]} Nc6 {[%emt 0:11:07]} 9. Be3 {[%emt 0:02:11]} O-O {[%emt 0:10:16] B03: Alekhine's Defence: Four Pawns Attack.} 10. b3 {[%emt 0:00:53]} d5 {[%emt 0:08:25]} 11. c5 {[%emt 0:14:14]} Nd7 {[%emt 0:09:11] The position is equal.} 12. Rc1 {[%emt 0:03:27] [#]} (12. O-O $11) 12... e5 $1 $17 {[%emt 0:02:05][%cal Re5d4]} 13. Bb1 {[%emt 0:08:47] [#]} (13. Bb5 $15) 13... exd4 $1 $19 {[%emt 0:04:21]} 14. Nxd4 {[%emt 0:00:10]} Nxd4 {[%emt 0:06:15]} (14... Bxd4 $19 15. Bxd4 Re8+ 16. Kf1 Qh4) 15. Bxd4 $15 {[%emt 0:00:09]} Re8+ {[%emt 0:01:44]} 16. Ne2 {[%emt 0:01:23]} ({Better is} 16. Kf1 $15) 16... Qa5+ {[%emt 0:02:16]} (16... Bxd4 $142 17. Qxd4 b6 18. cxb6 axb6) 17. Kf1 $17 {[%emt 0:00:12] [#]} Nf6 $146 {[%emt 0:08:28]} (17... Bxd4 $17 18. Qxd4 b6) ({Predecessor:} 17... Ne5 18. h3 Bd7 19. f4 Nc6 20. Bxg7 Kxg7 21. Kf2 Rad8 22. Rf1 d4 23. Kg1 Bc8 {0-1 (40) Barbu,I (2282)-Iankowski,R (2389) Miercurea Ciuc 2000}) 18. f3 {[%emt 0:13:38]} Bd7 {[%emt 0:09:27][%cal Of6g4,Bc8d7,Bd7f5,Bf5d3][%mdl 32]} 19. Bd3 {[%emt 0:00:58]} h5 {[%emt 0:08:46] Prevents g4. Black is more active.} (19... Qxa2 $2 20. Ra1 Qxa1 21. Qxa1 $18) ({Black should play} 19... Nh5 $17 {And now ...Bxd4 would win.} 20. Bf2 Bh6) 20. Qe1 {[%emt 0:01:33]} (20. Rc2 $11) 20... Qxa2 $15 {[%emt 0:03:47]} 21. Qc3 {[%emt 0:00:58] aiming for Ra1.} Bf5 {[%emt 0:00:04]} 22. Rc2 $2 {[%emt 0:11:17][%mdl 8192] Loses the game.} (22. Bb5 $15) 22... Qb1+ $19 {[%emt 0:00:16]} 23. Kf2 {[%emt 0:00:10]} Rxe2+ {[%emt 0:00:32]} 24. Rxe2 {[%emt 0:12:52]} Qxd3 {[%emt 0:00:32] Really sharp!} ({Worse is} 24... Qxh1 25. Bxf5 Re8 26. Bd3 Rxe2+ 27. Bxe2 $15) 25. Qxd3 {[%emt 0:03:21]} Bxd3 {[%emt 0:00:02]} 26. Re7 {[%emt 0:02:44] [#]} (26. Re5 {keeps fighting.}) 26... Ng4+ $1 {[%emt 0:01:28] Black is clearly winning.} 27. Kg3 {[%emt 0:00:23] Bxg7 is the strong threat.} Bxd4 {[%emt 0:00:13]} 28. Rd1 {[%emt 0:00:07]} (28. fxg4 $142 hxg4 29. b4) 28... Ne3 {[%emt 0:01:47] Weighted Error Value: White=0.97/Black=0.31} 0-1

[Event "FRA-ch Teams Top 16-Bas 2022"]
[Site "Chartres"]
[Date "2022.06.16"]
[Round "8.12"]
[White "Le Hetet, Nicolas"]
[Black "Sochacki, Wojtek"]
[Result "1-0"]
[ECO "B74"]
[WhiteElo "2372"]
[BlackElo "2324"]
[Annotator "TA"]
[PlyCount "79"]
[EventDate "2022.06.16"]
[EventType "team-tourn"]
[EventCountry "FRA"]
[SourceTitle "playchess.com"]
[Source "ChessBase"]
[SourceQuality "1"]
[TimeControl "40/5400+30:1800+30"]

{[%evp 24,79,-11,-22,-18,-18,-18,-15,-18,-11,0,0,0,0,0,0,0,-7,0,0,0,0,0,0,0,0,0,0,97,92,91,89,91,84,106,56,99,97,110,77,128,123,137,123,143,19,329,314,1041,986,902,756,2635,1621,29987,29981,29994,29995]} 1. e4 {[%emt 0:00:02]} c5 {[%emt 0:04:59]} 2. Nf3 {[%emt 0:00:13]} d6 {[%emt 0:00:03]} 3. d4 {[%emt 0:00:08]} cxd4 {[%emt 0:00:03]} 4. Nxd4 {[%emt 0:00:07]} Nf6 {[%emt 0:00:03]} 5. Nc3 {[%emt 0:00:09]} g6 {[%emt 0:00:03]} 6. Be3 {[%emt 0:02:49]} Bg7 {[%emt 0:00:10]} 7. Be2 {[%emt 0:00:06]} Nc6 {[%emt 0:01:31]} 8. Nb3 {[%emt 0:01:20]} O-O {[%emt 0:00:15]} 9. f4 {[%emt 0:00:14]} Be6 {[%emt 0:01:45]} 10. O-O {[%emt 0:07:53]} Qc8 {[%emt 0:01:29]} 11. h3 {[%emt 0:06:27]} Rd8 {[%emt 0:02:35]} 12. Bf3 {[%emt 0:05:13]} Bc4 {[%emt 0:02:40]} 13. Rf2 {[%emt 0:03:20]} d5 {[%emt 0:36:48] B74: Sicilian Dragon: Classical System with 9 Nb3.} 14. exd5 {[%emt 0:04:14] [#]} Nxd5 $1 {[%emt 0:12:25]} 15. Nxd5 {[%emt 0:00:49] Hoping for Rd2.} e6 {[%emt 0:00:10] The position is equal.} 16. Rd2 {[%emt 0:07:57]} Bxd5 {[%emt 0:07:52]} (16... exd5 {seems wilder.} 17. c3 Re8 18. Bc5 Qc7) 17. Bxd5 {[%emt 0:05:07]} Rxd5 {[%emt 0:00:05]} 18. Rxd5 {[%emt 0:00:49]} exd5 {[%emt 0:00:03]} 19. c3 {[%emt 0:04:58] [#]} Qe6 $146 {[%emt 0:07:58]} ({Predecessor:} 19... Qf5 20. Qd2 Re8 21. Rd1 b6 22. Bf2 Bf6 23. g4 Qc8 24. Qxd5 Rd8 25. Qf3 Rxd1+ 26. Qxd1 {½-½ (51) Troianescu,O-Barczay,L Havana 1971}) 20. Qf3 {[%emt 0:08:04]} Re8 {[%emt 0:03:44]} 21. Re1 {[%emt 0:06:27]} Qf5 {[%emt 0:00:50][%cal Od5d4]} 22. g4 {[%emt 0:09:38]} Qd3 {[%emt 0:09:33]} 23. Qe2 {[%emt 0:05:10]} Qe4 {[%emt 0:02:54] And now ...d4 would win.} 24. Nc5 {[%emt 0:11:31][%csl LRb7,LRe4]} Qe7 {[%emt 0:00:04] ...d4 is the strong threat.} 25. Qd2 {[%emt 0:00:52] Prevents d4.} Qc7 {[%emt 0:04:14]} (25... b6 $11 26. Nb3 Qd8) 26. Qxd5 $16 {[%emt 0:01:14]} Rd8 {[%emt 0:00:01]} 27. Qf3 {[%emt 0:01:23] White is more active.} h6 {[%emt 0:00:16]} 28. Kg2 {[%emt 0:01:20]} b6 {[%emt 0:00:50]} 29. Nb3 {[%emt 0:00:50]} (29. Ne4 $16) 29... Qd7 {[%emt 0:00:42]} 30. Re2 {[%emt 0:01:08][%cal Be1e2,Be2d2,Bd2d6][%mdl 32]} Re8 {[%emt 0:00:49]} 31. Bf2 {[%emt 0:01:38]} Rc8 {[%emt 0:00:23]} ({Better is} 31... Rxe2 32. Qxe2 Qd5+ 33. Qf3 Qe6) 32. Rd2 {[%emt 0:00:20]} Qe8 {[%emt 0:00:16]} 33. Rd6 {[%emt 0:01:40]} g5 {[%emt 0:00:15]} 34. Nd4 {[%emt 0:01:52]} ({White should play} 34. fxg5 $16 hxg5 35. Nd2) 34... Na5 $2 {[%emt 0:00:27][%mdl 8192] Black cannot hold the game after this.} (34... Nxd4 $11 {and Black is okay.} 35. Bxd4 Qe7) 35. Nf5 $18 {[%emt 0:01:06]} Qf8 {[%emt 0:00:35]} (35... Rc6 36. fxg5 Rxd6) 36. Bd4 {[%emt 0:01:04]} Bxd4 {[%emt 0:00:16]} 37. Rxd4 {[%emt 0:00:17] Black must now prevent fxg5.} ({Weaker is} 37. cxd4 Rc2+ 38. Kg3 Qe8 $18) 37... f6 {[%emt 0:01:19]} 38. Rd7 {[%emt 0:00:56] Qe4 would kill now.} Kh8 {[%emt 0:00:29]} 39. Nd6 {[%emt 0:00:30]} Rc6 {[%emt 0:00:33] [#]} 40. Qe4 $1 {[%emt 0:00:42] Weighted Error Value: White=0.18 (very precise) /Black=0.70} 1-0

[Event "FRA-ch Teams Top 16-Bas 2022"]
[Site "Chartres"]
[Date "2022.06.16"]
[Round "8.13"]
[White "Dutreuil, Raphael"]
[Black "Domenech, Vianney"]
[Result "1-0"]
[ECO "E60"]
[WhiteElo "2309"]
[BlackElo "2266"]
[Annotator "RC"]
[PlyCount "97"]
[EventDate "2022.06.16"]
[EventType "team-tourn"]
[EventCountry "FRA"]
[SourceTitle "playchess.com"]
[Source "ChessBase"]
[SourceQuality "1"]
[TimeControl "40/5400+30:1800+30"]

1. d4 {[%emt 0:00:05]} Nf6 {[%emt 0:00:08]} 2. Nf3 {[%emt 0:00:36]} g6 {[%emt 0:00:11]} 3. g3 {[%emt 0:00:18]} Bg7 {[%emt 0:00:03]} 4. Bg2 {[%emt 0:00:10]} d6 {[%emt 0:00:16]} 5. c4 {[%emt 0:00:31]} O-O {[%emt 0:00:16]} 6. O-O {[%emt 0:00:09]} Nc6 {[%emt 0:00:20]} 7. d5 {[%emt 0:01:44]} Na5 {[%emt 0:01:42]} 8. Na3 {[%emt 0:01:18]} c5 {[%emt 0:02:24]} 9. Re1 {[%emt 0:00:46]} a6 {[%emt 0:05:47]} 10. e4 {[%emt 0:02:52]} e5 {[%emt 0:06:03]} 11. Rb1 {[%emt 0:06:31]} Rb8 {[%emt 0:10:33]} 12. Bd2 {[%emt 0:09:08]} b6 {[%emt 0:07:50]} 13. Bc3 {[%emt 0:11:58]} Bd7 {[%emt 0:07:05]} 14. Nd2 {[%emt 0:11:52]} Nb7 {[%emt 0:09:06]} 15. Nc2 {[%emt 0:11:59]} b5 {[%emt 0:02:13]} 16. b3 {[%emt 0:00:39]} b4 {[%emt 0:04:34]} 17. Bb2 {[%emt 0:00:18]} Qc8 {[%emt 0:05:00]} 18. f4 {[%emt 0:06:34]} exf4 {[%emt 0:05:40]} 19. gxf4 {[%emt 0:01:02]} Bg4 {[%emt 0:02:01]} 20. Qc1 {[%emt 0:05:41]} Bh3 {[%emt 0:03:43]} 21. Bf3 {[%emt 0:00:23]} Bg4 {[%emt 0:03:34]} 22. Bg2 {[%emt 0:00:33]} Bh3 {[%emt 0:00:10]} 23. Bf3 {[%emt 0:00:20]} Bg4 {[%emt 0:06:22]} 24. Qd1 {[%emt 0:00:08]} Bxf3 {[%emt 0:00:36]} 25. Qxf3 {[%emt 0:00:19]} Qg4+ {[%emt 0:00:41]} 26. Qg3 {[%emt 0:15:23]} Rfe8 {[%emt 0:02:33]} 27. e5 {[%emt 0:05:24]} Qxg3+ {[%emt 0:00:10]} 28. hxg3 {[%emt 0:00:01]} Ng4 {[%emt 0:01:28]} 29. Nf3 {[%emt 0:00:24]} a5 {[%emt 0:02:00]} 30. a4 {[%emt 0:00:18]} bxa3 {[%emt 0:05:40]} 31. Nxa3 {[%emt 0:00:27]} a4 {[%emt 0:00:01]} 32. Nb5 {[%emt 0:01:35]} axb3 {[%emt 0:00:47]} 33. Bc3 {[%emt 0:01:29]} h5 {[%emt 0:02:17]} 34. Rxb3 {[%emt 0:00:44]} Re7 {[%emt 0:02:13]} 35. Nxd6 {[%emt 0:02:08]} Bf8 {[%emt 0:01:50]} 36. Reb1 {[%emt 0:00:49]} Nxd6 {[%emt 0:00:19]} 37. Rxb8 {[%emt 0:00:13]} Ne4 {[%emt 0:01:26]} 38. Be1 {[%emt 0:01:21]} Ra7 {[%emt 0:01:02]} 39. d6 {[%emt 0:01:10]} Kg7 {[%emt 0:00:31]} 40. R8b2 {[%emt 0:01:57]} Ra3 {[%emt 0:00:49]} 41. Re2 {[%emt 0:01:43]} Nc3 {[%emt 0:05:27]} 42. Bxc3 {[%emt 0:01:44]} Rxc3 {[%emt 0:01:55]} 43. Kg2 {[%emt 0:01:09]} Ne3+ {[%emt 0:02:38]} 44. Rxe3 {[%emt 0:01:55]} Rxe3 {[%emt 0:00:05]} 45. Rd1 {[%emt 0:00:08]} Re2+ {[%emt 0:02:21]} 46. Kh3 {[%emt 0:00:39]} h4 {[%emt 0:09:12]} 47. gxh4 {[%emt 0:05:26]} Re4 {[%emt 0:02:18]} 48. Kg3 {[%emt 0:00:29]} Rxc4 {[%emt 0:00:43]} 49. d7 {[%emt 0:00:08]} 1-0

[Event "FRA-ch Teams Top 16-Bas 2022"]
[Site "Chartres"]
[Date "2022.06.16"]
[Round "8.14"]
[White "Boukhris-Ferre, Yacine"]
[Black "Cantin, Loic"]
[Result "0-1"]
[ECO "B30"]
[WhiteElo "2183"]
[BlackElo "2199"]
[Annotator "NA RC"]
[PlyCount "80"]
[EventDate "2022.06.16"]
[EventType "team-tourn"]
[EventCountry "FRA"]
[SourceTitle "playchess.com"]
[Source "ChessBase"]
[SourceQuality "1"]
[TimeControl "40/5400+30:1800+30"]

1. e4 {[%emt 0:00:17]} c5 {[%emt 0:00:41]} 2. Nf3 {[%emt 0:00:24]} Nc6 {[%emt 0:00:36]} 3. Bb5 {[%emt 0:00:11]} Nf6 {[%emt 0:00:18]} 4. Nc3 {[%emt 0:01:13]} Qc7 {[%emt 0:01:05]} 5. O-O {[%emt 0:00:58]} Nd4 {[%emt 0:00:39]} 6. Re1 {[%emt 0:09:00]} a6 {[%emt 0:01:17]} 7. e5 {[%emt 0:05:08]} Nxb5 {[%emt 0:13:00]} 8. exf6 {[%emt 0:13:36]} gxf6 {[%emt 0:02:38]} 9. Nd5 {[%emt 0:03:08]} Qc6 {[%emt 0:08:13]} 10. c4 {[%emt 0:02:32]} Nc7 {[%emt 0:01:26]} 11. Nxc7+ {[%emt 0:08:48]} Qxc7 {[%emt 0:00:05]} 12. d4 {[%emt 0:00:03]} b6 {[%emt 0:05:12]} 13. Be3 {[%emt 0:15:41]} Bb7 {[%emt 0:03:14]} 14. d5 {[%emt 0:00:27]} e6 {[%emt 0:11:25]} 15. a3 {[%emt 0:14:43]} Rg8 {[%emt 0:08:00]} 16. Qd3 {[%emt 0:02:07]} Bd6 {[%emt 0:08:32]} 17. Rab1 {[%emt 0:01:48]} b5 {[%emt 0:02:55]} 18. b3 {[%emt 0:01:27]} O-O-O {[%emt 0:02:43]} 19. h3 {[%emt 0:00:54]} Rg7 {[%emt 0:02:08]} 20. Red1 {[%emt 0:00:57]} Rdg8 {[%emt 0:02:28]} 21. Ne1 {[%emt 0:00:21]} Be5 {[%emt 0:01:31]} 22. Kf1 {[%emt 0:01:26]} f5 {[%emt 0:02:08]} 23. Rdc1 {[%emt 0:05:34]} d6 {[%emt 0:04:17]} 24. Rc2 {[%emt 0:05:27]} bxc4 {[%emt 0:08:47]} 25. bxc4 {[%emt 0:00:34]} Kd7 {[%emt 0:00:52]} 26. f4 {[%emt 0:04:01]} Bf6 {[%emt 0:00:29]} 27. Bf2 {[%emt 0:00:14]} a5 {[%emt 0:03:14]} 28. Rd2 {[%emt 0:00:46]} Rb8 {[%emt 0:01:06]} 29. Rb5 {[%emt 0:01:46]} Ba6 {[%emt 0:03:08]} 30. dxe6+ {[%emt 0:00:51]} Ke7 {[%emt 0:01:20]} 31. Rxb8 {[%emt 0:00:09]} Qxb8 {[%emt 0:00:07]} 32. exf7 {[%emt 0:01:08]} Rxf7 {[%emt 0:00:27]} 33. Nc2 {[%emt 0:00:44]} Qb1+ {[%emt 0:01:20]} 34. Rd1 {[%emt 0:00:15]} Bxc4 {[%emt 0:00:14]} 35. Qxc4 {[%emt 0:00:47]} Qxd1+ {[%emt 0:00:06]} 36. Be1 {[%emt 0:00:12]} Kf8 {[%emt 0:01:32]} 37. Ne3 {[%emt 0:00:22]} Qd4 {[%emt 0:00:30]} 38. Qb3 {[%emt 0:00:57]} Qxf4+ {[%emt 0:00:09]} 39. Bf2 {[%emt 0:00:23]} Bd4 {[%emt 0:00:30]} 40. g3 {[%emt 0:00:23]} Qe4 {[%emt 0:01:05]} 0-1

[Event "FRA-ch Teams Top 16-Bas 2022"]
[Site "Chartres"]
[Date "2022.06.16"]
[Round "8.15"]
[White "Caille, Hugo"]
[Black "Louis, Thibault"]
[Result "1/2-1/2"]
[ECO "A48"]
[WhiteElo "2177"]
[BlackElo "2154"]
[Annotator "TA"]
[PlyCount "123"]
[EventDate "2022.06.16"]
[EventType "team-tourn"]
[EventCountry "FRA"]
[SourceTitle "playchess.com"]
[Source "ChessBase"]
[SourceQuality "1"]
[TimeControl "40/5400+30:1800+30"]

{[%evp 9,122,23,70,2,4,3,-4,-2,-10,-10,0,-4,0,0,23,22,18,19,25,22,41,0,9,-1,14,15,37,-6,183,193,433,392,672,402,424,429,425,427,413,438,413,432,408,387,556,534,854,852,901,903,922,662,1114,869,1066,1022,295,1091,1289,1305,1121,983,764,439,448,343,343,344,344,344,344,344,344,344,344,344,344,344,467,465,464,452,577,604,593,558,788,631,719,704,29963,29971,29973,29974,29973,29970,29976,29977,29977,29978,29977,29977,29977,29978,29978,29979,29978,29979,29979,29972,29967,5891,897,0,0]} 1. Nf3 {[%emt 0:00:08]} c5 {[%emt 0:00:32]} 2. e3 {[%emt 0:02:13]} g6 {[%emt 0:00:57]} 3. d4 {[%emt 0:02:16]} Nf6 {[%emt 0:02:48]} 4. d5 {[%emt 0:03:17]} Bg7 {[%emt 0:07:24]} 5. Be2 {[%emt 0:01:39]} b5 {[%emt 0:06:52]} (5... d6 $11 {is superior.}) 6. O-O {[%emt 0:06:42] A48: 1 d4 Nf6 2 Nf3 g6: Torre, London and Colle Systems.} (6. Bxb5 $14 Qa5+ 7. Nc3) 6... Bb7 $11 {[%emt 0:05:51] [#]} 7. Bxb5 $146 {[%emt 0:18:24] White wants to play c4.} ({Predecessor:} 7. c4 bxc4 8. Nc3 O-O 9. Bxc4 d6 10. e4 Nbd7 11. h3 Nb6 12. Bb3 c4 13. Bc2 {½-½ (36) Wutz,C (2277)-Lapcevic,M (2361) Bayern 2018}) 7... Nxd5 {[%emt 0:03:10]} 8. e4 {[%emt 0:01:08]} Nc7 {[%emt 0:12:08][%csl LRb5,LRe4]} 9. Bc4 {[%emt 0:00:20]} O-O {[%emt 0:00:12]} 10. Re1 {[%emt 0:03:18]} d6 {[%emt 0:08:49]} 11. c3 {[%emt 0:02:21]} Nc6 {[%emt 0:05:58]} 12. Bg5 {[%emt 0:05:14]} Kh8 {[%emt 0:04:38]} 13. Nbd2 {[%emt 0:06:30]} f6 {[%emt 0:00:16]} 14. Bh4 {[%emt 0:00:58]} e5 {[%emt 0:05:18]} 15. Nf1 {[%emt 0:01:44]} Ne7 {[%emt 0:01:18]} 16. Qc2 {[%emt 0:01:58]} Qd7 {[%emt 0:07:19]} (16... d5 $5 {[%cal Rd5c4]} 17. Rad1 Qe8 18. exd5 Ncxd5 $11) 17. Rad1 {[%emt 0:01:51][%cal Ba1d1,Bd1d8,Bd8e8][%mdl 32]} Qc6 {[%emt 0:00:31]} 18. Qd3 {[%emt 0:08:40]} Rad8 $2 {[%emt 0:01:21]} (18... d5 $11 19. exd5 Ncxd5) 19. Nxe5 $1 $18 {[%emt 0:01:14]} dxe5 {[%emt 0:11:28]} (19... Qe8) 20. Qxd8 {[%emt 0:00:07]} Nf5 {[%emt 0:00:28]} (20... Nc8 21. Ne3 Nb6) 21. Bxf6 {[%emt 0:04:16][%cal Rd8f8]} Rxd8 {[%emt 0:03:36]} 22. Rxd8+ {[%emt 0:00:17]} Ne8 {[%emt 0:00:11] ...Nfd6 is the strong threat.} 23. Bd5 {[%emt 0:00:32][%mdl 64] Skewer} Qxf6 {[%emt 0:01:03]} 24. Rxe8+ {[%emt 0:00:15]} Bf8 {[%emt 0:00:05]} 25. Bxb7 {[%emt 0:00:38]} Nd6 {[%emt 0:06:16]} 26. Rb8 {[%emt 0:00:35]} Kg7 {[%emt 0:00:31]} (26... Qe7 {was worth a try.} 27. Bd5 h5) 27. Bd5 {[%emt 0:01:02]} h5 {[%emt 0:00:30]} 28. Re3 {[%emt 0:02:04]} Be7 {[%emt 0:01:08]} 29. Rf3 {[%emt 0:01:04]} Qg5 {[%emt 0:00:26]} 30. Ne3 {[%emt 0:00:23]} h4 {[%emt 0:00:22]} 31. h3 {[%emt 0:00:22]} a5 {[%emt 0:01:31]} 32. Nc4 {[%emt 0:05:02] Strongly threatening Nxd6.} Qc1+ {[%emt 0:00:48]} 33. Kh2 {[%emt 0:00:12]} Bg5 {[%emt 0:02:40]} 34. Nxd6 {[%emt 0:04:10] Intending Rf7+ and mate.} Bf4+ {[%emt 0:00:05]} 35. g3 {[%emt 0:04:11]} hxg3+ {[%emt 0:00:25]} 36. fxg3 {[%emt 0:02:48] Rb7+ would kill now.} Qd2+ {[%emt 0:00:21]} 37. Kh1 {[%emt 0:00:24] White wants to mate with Rb7+.} Qe2 {[%emt 0:00:33]} 38. Rb7+ {[%emt 0:06:26]} (38. gxf4 Qxf3+ 39. Kg1 exf4 $11) 38... Kh6 {[%emt 0:00:15]} 39. Nf7+ {[%emt 0:02:40]} (39. gxf4 Qxf3+ 40. Kg1 exf4 $11) 39... Kh5 {[%emt 0:00:06] [#]} 40. Nxe5 {[%emt 0:02:03]} (40. gxf4 Qxf3+ 41. Kg1 Kh4 $15) 40... Bxe5 {[%emt 0:01:01] [#]} 41. Rbf7 {[%emt 0:06:07]} ({Less strong is} 41. Rh7+ Kg5 42. h4+ Kg4 $16) 41... Kh6 {[%emt 0:14:27]} 42. Rf2 {[%emt 0:00:57]} Qe1+ {[%emt 0:01:21]} 43. Kg2 {[%emt 0:00:15]} a4 {[%emt 0:00:04][%cal Oa4a3]} 44. a3 {[%emt 0:01:46]} Qe3 {[%emt 0:00:19]} 45. R7f3 {[%emt 0:00:46]} Qe1 {[%emt 0:00:42]} 46. h4 {[%emt 0:04:44]} c4 {[%emt 0:07:52]} 47. g4 {[%emt 0:03:41][%cal Bg3g4,Bg4g5][%mdl 32] aiming for Rf7.} Bg7 {[%emt 0:03:49]} 48. g5+ {[%emt 0:03:18]} Kh7 {[%emt 0:00:18]} 49. Rf4 {[%emt 0:03:01]} Be5 {[%emt 0:00:45]} 50. Rf7+ {[%emt 0:00:22]} Bg7 {[%emt 0:00:28]} 51. Rd7 {[%emt 0:04:38]} Qe3 {[%emt 0:01:07]} 52. Rd8 {[%emt 0:01:22]} Qe1 {[%emt 0:02:00]} 53. Bg8+ {[%emt 0:00:22]} Kh8 {[%emt 0:00:05]} 54. Bxc4+ {[%emt 0:00:13]} Kh7 {[%emt 0:00:03]} 55. Bg8+ {[%emt 0:01:03]} Kh8 {[%emt 0:00:04]} 56. Bd5+ {[%emt 0:00:36]} Kh7 {[%emt 0:00:06]} 57. c4 {[%emt 0:02:02]} Qe3 {[%emt 0:00:47]} 58. Rd7 {[%emt 0:01:14]} Kh8 {[%emt 0:00:42]} 59. Re7 {[%emt 0:00:39]} Qc5 {[%emt 0:00:40]} 60. Rff7 {[%emt 0:00:36] White threatens h5 and mate.} Qe3 {[%emt 0:00:49]} 61. Rxg7 $2 {[%emt 0:00:35]} (61. Re8+ $18 Kh7 62. Rf2) 61... Qf2+ $11 {[%emt 0:00:48]} 62. Kxf2 {[%emt 0:00:45] Weighted Error Value: White=0.34/Black=0.60} 1/2-1/2